fUST/lending_fUST_20240814
["ID","MTS","AMOUNT","RATE_DAILY","PERIOD"]
[334921845,1723645842751,-500.0,0.00013698,2]
[334921846,1723645842763,-500.0,0.00013698,2]
[334921847,1723645842773,-500.0,0.00013698,2]
[334921848,1723645842783,-500.0,0.00013698,2]
[334921849,1723645842792,-500.0,0.00013698,2]
[334921850,1723645842802,-500.0,0.00013698,2]
[334921851,1723645842812,-500.0,0.00013698,2]
[334921852,1723645842821,-500.0,0.00013698,2]
[334921853,1723645842830,-500.0,0.00013698,2]
[334921854,1723645842840,-509.34,0.00013698,2]
[334921855,1723645842850,-500.0,0.00013698,2]
[334921856,1723645842859,-500.0,0.00013698,2]
[334921857,1723645842868,-500.0,0.00013698,2]
[334921858,1723645842878,-604.97,0.00013698,2]
[334921859,1723645842887,-500.0,0.00013698,2]
[334921860,1723645842896,-500.0,0.00013698,2]
[334921861,1723645842906,-500.0,0.00013698,2]
[334921862,1723645842915,-500.0,0.00013698,2]
[334921863,1723645842925,-500.0,0.00013698,2]
[334921864,1723645842934,-500.0,0.00013698,2]
[334921865,1723645842944,-500.0,0.00013698,2]
[334921866,1723645842954,-500.0,0.00013698,2]
[334921867,1723645842963,-500.0,0.00013698,2]
[334921868,1723645842973,-746.43,0.00013698,2]
[334921869,1723645842982,-331.22858278,0.00013698,2]
[334921870,1723645842992,-500.0,0.00013698,2]
[334921871,1723645843001,-500.0,0.00013698,2]
[334921872,1723645843012,-500.0,0.00013698,2]
[334921873,1723645843021,-500.0,0.00013698,2]
[334921874,1723645843030,-500.0,0.00013698,2]
[334921875,1723645843039,-664.11,0.00013698,2]
[334921876,1723645843049,-500.0,0.00013698,2]
[334921877,1723645843058,-500.0,0.00013698,2]
[334921878,1723645843068,-640.82891549,0.00013698,2]
[334921879,1723645843077,-500.0,0.00013698,2]
[334921881,1723645843087,-500.0,0.00013698,2]
[334921882,1723645843096,-500.0,0.00013698,2]
[334921883,1723645843106,-500.0,0.00013698,2]
[334921884,1723645843115,-500.0,0.00013698,2]
[334921885,1723645843124,-500.0,0.00013698,2]
[334921886,1723645843134,-500.0,0.00013698,2]
[334921887,1723645843144,-500.0,0.00013698,2]
[334921888,1723645843154,-500.0,0.00013698,2]
[334921889,1723645843163,-500.0,0.00013698,2]
[334921890,1723645843173,-500.0,0.00013698,2]
[334921891,1723645843182,-633.0,0.00013698,2]
[334921892,1723645843192,-623.47,0.00013698,2]
[334921893,1723645843201,-500.0,0.00013698,2]
[334921894,1723645843210,-782.98,0.00013698,2]
[334921895,1723645843220,-617.02,0.00013698,2]
[334921896,1723645843230,-500.0,0.00013698,2]
[334921897,1723645843240,-500.0,0.00013698,2]
[334921898,1723645843251,-500.0,0.00013698,2]
[334921899,1723645843262,-500.0,0.00013698,2]
[334921902,1723645843272,-500.0,0.00013698,2]
[334921904,1723645843281,-500.0,0.00013698,2]
[334921907,1723645843292,-500.0,0.00013698,2]
[334921909,1723645843306,-730.65,0.00013698,2]
[334921912,1723645843316,-500.0,0.00013698,2]
[334921914,1723645843325,-500.0,0.00013698,2]
[334921917,1723645843334,-500.0,0.00013698,2]
[334921919,1723645843344,-500.0,0.00013698,2]
[334921921,1723645843355,-500.0,0.00013698,2]
[334921923,1723645843364,-500.0,0.00013698,2]
[334921925,1723645843374,-500.0,0.00013698,2]
[334921927,1723645843384,-528.07035239,0.00013698,2]
[334921928,1723645843393,-500.0,0.00013698,2]
[334921930,1723645843403,-524.09,0.00013698,2]
[334921932,1723645843413,-439.40610273,0.00013698,2]
[334921933,1723645843422,-500.0,0.00013698,2]
[334921934,1723645843431,-559.14,0.00013698,2]
[334921935,1723645843441,-500.0,0.00013698,2]
[334921937,1723645843451,-500.0,0.00013698,2]
[334921939,1723645843460,-500.0,0.00013698,2]
[334921941,1723645843470,-500.0,0.00013698,2]
[334921942,1723645843479,-500.0,0.00013698,2]
[334921943,1723645843489,-517.92,0.00013698,2]
[334921944,1723645843498,-500.0,0.00013698,2]
[334921945,1723645843509,-500.0,0.00013698,2]
[334921946,1723645843518,-500.0,0.00013698,2]
[334921947,1723645843527,-500.0,0.00013698,2]
[334921948,1723645843537,-500.0,0.00013698,2]
[334921949,1723645843547,-500.0,0.00013698,2]
[334921950,1723645843558,-500.0,0.00013698,2]
[334921951,1723645843567,-500.0,0.00013698,2]
[334921952,1723645843576,-500.0,0.00013698,2]
[334921953,1723645843585,-500.0,0.00013698,2]
[334921954,1723645843595,-536.34,0.00013698,2]
[334921955,1723645843604,-500.0,0.00013698,2]
[334921956,1723645843613,-500.0,0.00013698,2]
[334921957,1723645843623,-500.0,0.00013698,2]
[334921958,1723645843633,-597.96,0.00013698,2]
[334921959,1723645843642,-500.0,0.00013698,2]
[334921960,1723645843651,-500.0,0.00013698,2]
[334921961,1723645843662,-500.0,0.00013698,2]
[334921962,1723645843672,-500.0,0.00013698,2]
[334921964,1723645843681,-500.0,0.00013698,2]
[334921966,1723645843691,-500.0,0.00013698,2]
[334921967,1723645843701,-500.0,0.00013698,2]
[334921969,1723645843711,-500.0,0.00013698,2]
[334921970,1723645843720,-500.0,0.00013698,2]
[334921971,1723645843729,-500.0,0.00013698,2]
[334921972,1723645843739,-500.0,0.00013698,2]
[334921973,1723645843749,-500.0,0.00013698,2]
[334921974,1723645843761,-500.0,0.00013698,2]
[334921975,1723645843771,-413.02977491,0.00013698,2]
[334921976,1723645843781,-500.0,0.00013698,2]
[334921977,1723645843790,-500.0,0.00013698,2]
[334921978,1723645843800,-542.32,0.00013698,2]
[334921979,1723645843809,-500.0,0.00013698,2]
[334921980,1723645843819,-500.0,0.00013698,2]
[334921981,1723645843829,-517.7,0.00013698,2]
[334921982,1723645843839,-1098.84,0.00013698,2]
[334921983,1723645843848,-500.0,0.00013698,2]
[334921984,1723645843858,-500.0,0.00013698,2]
[334921985,1723645843867,-500.0,0.00013698,2]
[334921986,1723645843877,-500.0,0.00013698,2]
[334921987,1723645843887,-620.51,0.00013698,2]
[334921988,1723645843896,-500.0,0.00013698,2]
[334921989,1723645843906,-500.0,0.00013698,2]
[334921990,1723645843915,-500.0,0.00013698,2]
[334921991,1723645843926,-500.0,0.00013698,2]
[334921992,1723645843935,-500.0,0.00013698,2]
[334921993,1723645843945,-500.0,0.00013698,2]
[334921994,1723645843955,-500.0,0.00013698,2]
[334921995,1723645843965,-433.0253555,0.00013698,2]
[334921996,1723645843974,-538.82,0.00013698,2]
[334921997,1723645843984,-500.0,0.00013698,2]
[334921998,1723645843993,-500.0,0.00013698,2]
[334921999,1723645844003,-500.0,0.00013698,2]
[334922000,1723645844015,-626.18,0.00013698,2]
[334922001,1723645844025,-500.0,0.00013698,2]
[334922002,1723645844035,-500.0,0.00013698,2]
[334922003,1723645844045,-500.0,0.00013698,2]
[334922004,1723645844055,-559.37,0.00013698,2]
[334922005,1723645844064,-500.0,0.00013698,2]
[334922006,1723645844074,-500.0,0.00013698,2]
[334922007,1723645844083,-500.0,0.00013698,2]
[334922008,1723645844093,-500.0,0.00013698,2]
[334922009,1723645844102,-621.13,0.00013698,2]
[334922010,1723645844112,-500.0,0.00013698,2]
[334922011,1723645844121,-500.0,0.00013698,2]
[334922012,1723645844131,-513.31467293,0.00013698,2]
[334922013,1723645844141,-177.89190976,0.00013698,2]
[334922014,1723645844150,-500.0,0.00013698,2]
[334922015,1723645844160,-500.0,0.00013698,2]
[334922016,1723645844169,-500.0,0.00013698,2]
[334922017,1723645844178,-500.0,0.00013698,2]
[334922018,1723645844188,-566.17,0.00013698,2]
[334922019,1723645844197,-500.0,0.00013698,2]
[334922020,1723645844207,-500.0,0.00013698,2]
[334922021,1723645844217,-500.0,0.00013698,2]
[334922022,1723645844227,-500.0,0.00013698,2]
[334922023,1723645844237,-500.0,0.00013698,2]
[334922024,1723645844247,-533.86,0.00013698,2]
[334922025,1723645844257,-500.0,0.00013698,2]
[334922026,1723645844267,-671.65,0.00013698,2]
[334922027,1723645844277,-500.0,0.00013698,2]
[334922028,1723645844286,-500.0,0.00013698,2]
[334922029,1723645844296,-500.0,0.00013698,2]
[334922030,1723645844305,-500.0,0.00013698,2]
[334922031,1723645844314,-500.0,0.00013698,2]
[334922032,1723645844323,-500.0,0.00013698,2]
[334922033,1723645844332,-701.22,0.00013698,2]
[334922034,1723645844341,-500.0,0.00013698,2]
[334922035,1723645844350,-500.0,0.00013698,2]
[334922036,1723645844359,-500.0,0.00013698,2]
[334922037,1723645844368,-696.85,0.00013698,2]
[334922038,1723645844378,-734.7,0.00013698,2]
[334922039,1723645844387,-651.82,0.00013698,2]
[334922040,1723645844397,-500.0,0.00013698,2]
[334922041,1723645844406,-500.0,0.00013698,2]
[334922042,1723645844415,-500.0,0.00013698,2]
[334922043,1723645844425,-500.0,0.00013698,2]
[334922044,1723645844434,-235.35046519,0.00013698,2]
[334922045,1723645844444,-500.0,0.00013698,2]
[334922046,1723645844454,-500.0,0.00013698,2]
[334922047,1723645844463,-1457.79,0.00013698,2]
[334922048,1723645844472,-500.0,0.00013698,2]
[334922049,1723645844482,-500.0,0.00013698,2]
[334922050,1723645844491,-500.0,0.00013698,2]
[334922051,1723645844501,-657.63,0.00013698,2]
[334922052,1723645844511,-500.0,0.00013698,2]
[334922053,1723645844521,-500.0,0.00013698,2]
[334922054,1723645844530,-500.0,0.00013698,2]
[334922055,1723645844540,-656.8,0.00013698,2]
[334922056,1723645844550,-500.0,0.00013698,2]
[334922057,1723645844560,-500.0,0.00013698,2]
[334922058,1723645844569,-500.0,0.00013698,2]
[334922059,1723645844579,-500.0,0.00013698,2]
[334922060,1723645844588,-650.8,0.00013698,2]
[334922061,1723645844597,-500.0,0.00013698,2]
[334922062,1723645844607,-500.0,0.00013698,2]
[334922063,1723645844615,-500.0,0.00013698,2]
[334922064,1723645844626,-500.0,0.00013698,2]
[334922065,1723645844635,-500.0,0.00013698,2]
[334922066,1723645844645,-500.0,0.00013698,2]
[334922067,1723645844656,-697.21,0.00013698,2]
[334922068,1723645844667,-500.0,0.00013698,2]
[334922069,1723645844676,-500.0,0.00013698,2]
[334922070,1723645844686,-500.0,0.00013698,2]
[334922071,1723645844697,-500.0,0.00013698,2]
[334922072,1723645844706,-500.0,0.00013698,2]
[334922073,1723645844716,-500.0,0.00013698,2]
[334922074,1723645844726,-611.08,0.00013698,2]
[334922075,1723645844736,-683.89,0.00013698,2]
[334922076,1723645844745,-500.0,0.00013698,2]
[334922077,1723645844755,-500.0,0.00013698,2]
[334922078,1723645844770,-500.0,0.00013698,2]
[334922079,1723645844780,-500.0,0.00013698,2]
[334922080,1723645844789,-500.0,0.00013698,2]
[334922081,1723645844799,-500.0,0.00013698,2]
[334922082,1723645844808,-500.0,0.00013698,2]
[334922083,1723645844818,-500.0,0.00013698,2]
[334922084,1723645844970,-624.31,0.00013698,2]
[334922085,1723645844980,-500.0,0.00013698,2]
[334922086,1723645844989,-500.0,0.00013698,2]
[334922087,1723645844999,-500.0,0.00013698,2]
[334922088,1723645845009,-500.0,0.00013698,2]
[334922089,1723645845021,-500.0,0.00013698,2]
[334922090,1723645845031,-500.0,0.00013698,2]
[334922091,1723645845041,-500.0,0.00013698,2]
[334922092,1723645845050,-500.0,0.00013698,2]
[334922093,1723645845060,-500.0,0.00013698,2]
[334922094,1723645845069,-709.02,0.00013698,2]
[334922095,1723645845079,-500.0,0.00013698,2]
[334922096,1723645845089,-500.0,0.00013698,2]
[334922097,1723645845099,-500.0,0.00013698,2]
[334922098,1723645845109,-500.0,0.00013698,2]
[334922099,1723645845119,-500.0,0.00013698,2]
[334922100,1723645845130,-500.0,0.00013698,2]
[334922101,1723645845139,-500.0,0.00013698,2]
[334922102,1723645845149,-500.0,0.00013698,2]
[334922103,1723645845158,-1100.35,0.00013698,2]
[334922104,1723645845167,-187.33877416,0.00013698,2]
[334922105,1723645845423,-401.84122584,0.00013698,2]
[334922106,1723645845433,-500.0,0.00013698,2]
[334922107,1723645845443,-226.18873731,0.00013698,2]
[334922108,1723645845837,-273.81126269,0.00013698,2]
[334922109,1723645845847,-500.0,0.00013698,2]
[334922110,1723645845857,-500.0,0.00013698,2]
[334922111,1723645845867,-500.0,0.00013698,2]
[334922112,1723645845876,-500.0,0.00013698,2]
[334922113,1723645845885,-550.96,0.00013698,2]
[334922114,1723645845894,-500.0,0.00013698,2]
[334922115,1723645845904,-500.0,0.00013698,2]
[334922117,1723645845912,-540.57,0.00013698,2]
[334922119,1723645845922,-500.0,0.00013698,2]
[334922120,1723645845931,-500.0,0.00013698,2]
[334922121,1723645845942,-500.0,0.00013698,2]
[334922123,1723645845951,-500.0,0.00013698,2]
[334922124,1723645845961,-932.89680095,0.00013698,2]
[334922129,1723645846189,1330.67198935,0.00025,60]
[334922147,1723645846665,-245.86319905,0.00013698,2]
[334922150,1723645846676,-944.8,0.00013698,2]
[334922153,1723645846686,-500.0,0.00013698,2]
[334922155,1723645846696,-500.0,0.00013698,2]
[334922157,1723645846705,-500.0,0.00013698,2]
[334922159,1723645846715,-500.0,0.00013698,2]
[334922161,1723645846724,-500.0,0.00013698,2]
[334922162,1723645846737,-500.0,0.00013698,2]
[334922163,1723645846747,-500.0,0.00013698,2]
[334922164,1723645846756,-500.0,0.00013698,2]
[334922165,1723645846770,-572.23,0.00013698,2]
[334922166,1723645846779,-500.0,0.00013698,2]
[334922167,1723645846788,-500.0,0.00013698,2]
[334922168,1723645846797,-500.0,0.00013698,2]
[334922169,1723645846807,-33.23491529,0.00013698,2]
[334922170,1723645846821,-466.76508471,0.00013698,2]
[334922171,1723645846832,-500.0,0.00013698,2]
[334922172,1723645846841,-155.01835511,0.00013698,2]
[334922173,1723645871354,1451.64217021,0.00025,60]
[334922174,1723645903481,273.37336231,9.9e-05,2]
[334922175,1723645903847,200.0,0.0001,2]
[334922176,1723645919266,273.37336231,9.9e-05,2]
[334922177,1723645926881,5000.0,0.00025,60]
[334922178,1723645938594,5000.0,0.00025,60]
[334922179,1723645943450,5000.0,0.00025,60]
[334922180,1723645951468,5000.0,0.00025,60]
[334922181,1723645974548,4952.198321,0.00027,120]
[334922190,1723646946185,-273.37336231,8.865e-05,2]
[334922191,1723646946206,-200.0,8.87e-05,2]
[334922192,1723646946228,-273.37336231,8.955e-05,2]
[334922193,1723646946250,-400.0,0.0001024,2]
[334922194,1723646946271,-279.94,0.00010959,2]
[334922195,1723646946293,-5394.0679788,0.00011813,2]
[334922196,1723646946314,-600.0,0.00012243,2]
[334922197,1723646951601,273.37336231,9.9e-05,2]
[334922198,1723646953172,-500.0,0.00012986,2]
[334922199,1723646961795,273.37336231,9.9e-05,2]
[334922200,1723646970118,273.37336231,9.9e-05,2]
[334922201,1723646978524,273.37336231,9.9e-05,2]
[334922202,1723646983501,200.0,0.0001,2]
[334922203,1723646983651,400.0,0.0001137,2]
[334922204,1723646988693,273.37336231,9.9e-05,2]
[334922205,1723646998171,273.37336231,9.9e-05,2]
[334922206,1723647015255,273.37336231,9.9e-05,2]
[334922207,1723647016360,155.40171149,0.00012,2]
[334922208,1723647016628,223.35163588,0.00012,2]
[334922209,1723647018606,154.88897732,0.00012,2]
[334922210,1723647019761,180.63105164,0.00012,2]
[334922211,1723647022063,158.39702042,0.00012,2]
[334922212,1723647023083,156.87111249,0.00012,2]
[334922213,1723647023476,273.37336231,9.9e-05,2]
[334922214,1723647028832,2657.19496378,0.00013,2]
[334922215,1723647028856,2581.25466463,0.00013,2]
[334922225,1723647033139,273.37336231,9.9e-05,2]
[334922273,1723647033688,-1510.2470445,0.00013,2]
[334922294,1723647038943,-9696.53780326,0.00013,2]
[334922296,1723647038954,-600.0,0.00013373,2]
[334922298,1723647038964,-306.0,0.00013492,2]
[334922300,1723647038974,-153.0,0.00013492,2]
[334922302,1723647038983,-173.24118876,0.00013514,2]
[334922304,1723647038993,-150.0,0.00013515,2]
[334922306,1723647039003,-342.47979758,0.00013579,2]
[334922308,1723647039013,-342.47979758,0.00013579,2]
[334922310,1723647039023,-236.48480892,0.00013598,2]
[334922312,1723647039033,-9654.55565372,0.00013599,2]
[334922313,1723647039043,-9435.70289252,0.00013599,2]
[334922315,1723647039053,-153.0,0.000136,2]
[334922317,1723647039062,-153.0,0.000136,2]
[334922319,1723647039072,-4615.00472597,0.00013637,2]
[334922321,1723647039082,-5324.10913299,0.00013652,2]
[334922323,1723647039092,-236.48480892,0.00013667,2]
[334922325,1723647039101,-493.03932546,0.00013669,2]
[334922327,1723647039110,-688.33798731,0.00013686,2]
[334922329,1723647039120,-971.86,0.00013687,2]
[334922331,1723647039132,-971.86,0.00013687,2]
[334922333,1723647039142,-66992.25582405,0.00013688,2]
[334922336,1723647039154,-23585.37199655,0.00013688,2]
[334922337,1723647039164,-11108.02268351,0.00013689,2]
[334922338,1723647039188,-3883.82093431,0.00013689,2]
[334922354,1723647040799,-7652.56333728,0.00013689,2]
[334922355,1723647040809,-154.71377951,0.00013694,2]
[334922356,1723647040818,-898.15627799,0.00013694,2]
[334922357,1723647040828,-494.87154082,0.00013695,2]
[334922358,1723647040839,-271.5928364,0.00013696,2]
[334922359,1723647040848,-155.09355553,0.00013696,2]
[334922360,1723647040858,-971.86,0.00013697,2]
[334922361,1723647040867,-971.86,0.00013697,2]
[334922362,1723647040877,-971.86,0.00013697,2]
[334922363,1723647040886,-971.86,0.00013697,2]
[334922364,1723647040895,-971.86,0.00013697,2]
[334922365,1723647040905,-1765.67532584,0.00013697,2]
[334922366,1723647040914,-728.24505159,0.00013697,2]
[334922367,1723647040923,-810.98237385,0.00013697,2]
[334922368,1723647040933,-1754.38126186,0.00013698,2]
[334922369,1723647040947,-500.0,0.00013698,2]
[334922370,1723647040957,-500.0,0.00013698,2]
[334922371,1723647040966,-500.0,0.00013698,2]
[334922372,1723647040976,-500.0,0.00013698,2]
[334922373,1723647040985,-500.0,0.00013698,2]
[334922374,1723647040995,-501.57218982,0.00013698,2]
[334922375,1723647041004,-500.0,0.00013698,2]
[334922376,1723647041013,-500.0,0.00013698,2]
[334922377,1723647041022,-506.83451371,0.00013698,2]
[334922378,1723647041032,-500.0,0.00013698,2]
[334922379,1723647041041,-500.0,0.00013698,2]
[334922380,1723647041051,-500.0,0.00013698,2]
[334922381,1723647041060,-500.0,0.00013698,2]
[334922382,1723647041069,-500.0,0.00013698,2]
[334922383,1723647041078,-500.0,0.00013698,2]
[334922384,1723647041087,-500.0,0.00013698,2]
[334922385,1723647041097,-523.51394155,0.00013698,2]
[334922386,1723647041106,-500.0,0.00013698,2]
[334922387,1723647041116,-500.0,0.00013698,2]
[334922388,1723647041131,-467.94708192,0.00013698,2]
[334922389,1723647041140,-500.0,0.00013698,2]
[334922390,1723647041150,-500.0,0.00013698,2]
[334922391,1723647041161,-500.0,0.00013698,2]
[334922392,1723647041170,-500.0,0.00013698,2]
[334922393,1723647041180,-500.0,0.00013698,2]
[334922394,1723647041192,-500.0,0.00013698,2]
[334922395,1723647041203,-500.0,0.00013698,2]
[334922396,1723647041213,-500.0,0.00013698,2]
[334922397,1723647041225,-500.0,0.00013698,2]
[334922398,1723647041235,-500.0,0.00013698,2]
[334922399,1723647041245,-500.0,0.00013698,2]
[334922400,1723647041256,-500.0,0.00013698,2]
[334922401,1723647041265,-573.87,0.00013698,2]
[334922402,1723647041275,-526.07,0.00013698,2]
[334922403,1723647041284,-500.0,0.00013698,2]
[334922404,1723647041294,-500.0,0.00013698,2]
[334922405,1723647041303,-500.0,0.00013698,2]
[334922406,1723647041312,-500.0,0.00013698,2]
[334922407,1723647041321,-500.0,0.00013698,2]
[334922408,1723647041330,-500.0,0.00013698,2]
[334922409,1723647041340,-251.78195184,0.00013698,2]
[334922410,1723647041349,-306.1766915,0.00013698,2]
[334922411,1723647041359,-500.0,0.00013698,2]
[334922412,1723647041369,-500.0,0.00013698,2]
[334922413,1723647041378,-318.91280299,0.00013698,2]
[334922414,1723647041391,-181.08719701,0.00013698,2]
[334922415,1723647041400,-500.0,0.00013698,2]
[334922416,1723647041409,-500.0,0.00013698,2]
[334922417,1723647041418,-500.0,0.00013698,2]
[334922418,1723647041427,-500.0,0.00013698,2]
[334922419,1723647041437,-500.0,0.00013698,2]
[334922420,1723647041448,-400.0,0.00013698,2]
[334922421,1723647041457,-500.0,0.00013698,2]
[334922422,1723647041466,-394.62504613,0.00013698,2]
[334922423,1723647041478,-105.37495387,0.00013698,2]
[334922424,1723647041487,-500.0,0.00013698,2]
[334922425,1723647041496,-500.0,0.00013698,2]
[334922426,1723647041506,-502.49910985,0.00013698,2]
[334922427,1723647041515,-500.0,0.00013698,2]
[334922428,1723647041525,-307.50351157,0.00013698,2]
[334922429,1723647041537,-28.85134737,0.00013698,2]
[334922430,1723647041547,-500.0,0.00013698,2]
[334922431,1723647041557,-500.0,0.00013698,2]
[334922432,1723647041566,-500.0,0.00013698,2]
[334922433,1723647041576,-500.0,0.00013698,2]
[334922434,1723647041585,-500.0,0.00013698,2]
[334922435,1723647041594,-500.0,0.00013698,2]
[334922436,1723647041604,-500.0,0.00013698,2]
[334922437,1723647041613,-539.16230326,0.00013698,2]
[334922438,1723647041622,-500.0,0.00013698,2]
[334922439,1723647041631,-500.0,0.00013698,2]
[334922440,1723647041643,-500.0,0.00013698,2]
[334922441,1723647041654,-631.5221815,0.00013698,2]
[334922442,1723647041663,-503.99146235,0.00013698,2]
[334922443,1723647041672,-1.66392072,0.00013698,2]
[334922444,1723647041684,-498.33607928,0.00013698,2]
[334922445,1723647041697,-500.0,0.00013698,2]
[334922446,1723647041706,-211.25540252,0.00013698,2]
[334922447,1723647041772,-288.74459748,0.00013698,2]
[334922448,1723647041781,-39.5381114,0.00013698,2]
[334922449,1723647041864,278.39188772,0.00012,2]
[334922450,1723647041904,273.37336231,9.9e-05,2]
[334922460,1723647046158,601.42805892,0.00012,2]
[334922465,1723647046757,242.20157419,0.00012,2]
[334922467,1723647046771,-1612.67783737,0.00013693,2]
[334922470,1723647046781,-369.69226157,0.00013698,2]
[334922472,1723647046791,-500.0,0.00013698,2]
[334922474,1723647046802,-500.0,0.00013698,2]
[334922475,1723647046812,-581.73,0.00013698,2]
[334922476,1723647046823,-500.0,0.00013698,2]
[334922477,1723647046835,-500.0,0.00013698,2]
[334922478,1723647046844,-500.0,0.00013698,2]
[334922479,1723647046854,-500.0,0.00013698,2]
[334922480,1723647046875,-500.0,0.00013698,2]
[334922481,1723647046885,-536.07,0.00013698,2]
[334922482,1723647046895,-500.0,0.00013698,2]
[334922483,1723647046904,-500.0,0.00013698,2]
[334922484,1723647046915,-595.25,0.00013698,2]
[334922485,1723647046925,-500.0,0.00013698,2]
[334922486,1723647046937,-500.0,0.00013698,2]
[334922487,1723647046948,-500.0,0.00013698,2]
[334922488,1723647046958,-500.0,0.00013698,2]
[334922489,1723647046967,-500.0,0.00013698,2]
[334922490,1723647046977,-500.0,0.00013698,2]
[334922491,1723647046988,-500.0,0.00013698,2]
[334922492,1723647046999,-500.0,0.00013698,2]
[334922493,1723647047009,-500.0,0.00013698,2]
[334922494,1723647047019,-500.0,0.00013698,2]
[334922495,1723647047029,-500.0,0.00013698,2]
[334922496,1723647047039,-500.0,0.00013698,2]
[334922497,1723647047048,-500.0,0.00013698,2]
[334922498,1723647047058,-512.38,0.00013698,2]
[334922499,1723647047068,-500.0,0.00013698,2]
[334922500,1723647047078,-500.0,0.00013698,2]
[334922501,1723647047088,-500.0,0.00013698,2]
[334922502,1723647047098,-465.80865566,0.00013698,2]
[334922503,1723647047108,-500.0,0.00013698,2]
[334922504,1723647047121,-500.0,0.00013698,2]
[334922505,1723647047133,-600.6,0.00013698,2]
[334922506,1723647047143,-500.0,0.00013698,2]
[334922507,1723647047153,-500.0,0.00013698,2]
[334922508,1723647047363,-500.0,0.00013698,2]
[334922509,1723647047373,-500.0,0.00013698,2]
[334922510,1723647047383,-500.0,0.00013698,2]
[334922511,1723647047393,-500.0,0.00013698,2]
[334922512,1723647047402,-500.0,0.00013698,2]
[334922513,1723647047411,-500.0,0.00013698,2]
[334922514,1723647047422,-715.33,0.00013698,2]
[334922515,1723647047431,-500.0,0.00013698,2]
[334922516,1723647047441,-500.0,0.00013698,2]
[334922517,1723647047454,-500.0,0.00013698,2]
[334922518,1723647047464,-500.0,0.00013698,2]
[334922519,1723647047474,-500.0,0.00013698,2]
[334922520,1723647047483,-500.0,0.00013698,2]
[334922521,1723647047492,-500.0,0.00013698,2]
[334922522,1723647047501,-500.0,0.00013698,2]
[334922523,1723647047511,-500.0,0.00013698,2]
[334922524,1723647047519,-500.0,0.00013698,2]
[334922525,1723647047529,-636.44,0.00013698,2]
[334922526,1723647047538,-500.0,0.00013698,2]
[334922527,1723647047547,-500.0,0.00013698,2]
[334922528,1723647047556,-500.0,0.00013698,2]
[334922529,1723647047566,-500.0,0.00013698,2]
[334922530,1723647047575,-500.0,0.00013698,2]
[334922531,1723647047585,-500.0,0.00013698,2]
[334922532,1723647047594,-500.0,0.00013698,2]
[334922533,1723647047604,-500.0,0.00013698,2]
[334922534,1723647047614,-500.0,0.00013698,2]
[334922535,1723647047624,-500.0,0.00013698,2]
[334922536,1723647047639,-500.0,0.00013698,2]
[334922537,1723647047650,-500.0,0.00013698,2]
[334922538,1723647047660,-606.62,0.00013698,2]
[334922539,1723647047669,-500.0,0.00013698,2]